bitfinex/quotes_ETHUSD_20250814
["timestamp","ask_amount","ask_price","bid_price","bid_amount"]
[1755161681357,31.9792,4723.7,4723.6,7.96370141]
[1755161681743,13.53,4724.0,4723.7,3.0]
[1755161681744,8.55313292,4724.0,4723.7,3.0]
[1755161681968,126.0063385,4724.2,4724.1,2.11680531]
[1755161682272,126.0063385,4724.2,4724.1,6.39330531]
[1755161682972,126.0063385,4724.2,4724.1,5.11680531]
[1755161683774,127.2363385,4724.2,4724.1,6.39330531]
[1755161684482,127.2363385,4724.2,4724.1,5.11680531]
[1755161684684,127.2363385,4724.2,4724.1,5.44720141]
[1755161685243,128.4663385,4724.2,4724.1,5.44720141]
[1755161686710,129.6963385,4724.2,4724.1,6.08210641]
[1755161687025,129.6955385,4724.2,4724.1,6.08210641]
[1755161687983,130.9255385,4724.2,4724.1,6.08210641]
[1755161689412,132.1555385,4724.2,4724.1,6.08210641]
[1755161692337,132.6155385,4724.2,4724.1,6.08290641]
[1755161693096,133.7778385,4724.2,4724.1,2.75251031]
[1755161693296,133.7778385,4724.2,4724.1,2.11760531]
[1755161693498,133.7778385,4724.2,4724.1,0.0008]
[1755161694428,133.7778385,4724.2,4723.9,2.2224844]
[1755161694610,1.6223,4724.1,4723.9,2.2224844]
[1755161694801,1.6223,4724.1,4724.0,2.11685012]
[1755161695007,1.6223,4724.1,4723.9,0.1056]
[1755161695202,1.6223,4724.0,4723.9,2.22245214]
[1755161696036,132.1555385,4724.2,4724.1,2.11680531]
[1755161696332,133.7778385,4724.2,4724.1,2.11680531]
[1755161696837,133.7778385,4724.2,4724.0,2.11684699]
[1755161697041,1.6223,4724.1,4724.0,2.11684699]
[1755161697652,132.1555385,4724.2,4723.9,0.1056]
[1755161697801,0.46,4724.1,4724.0,2.11685012]
[1755161698001,132.1555385,4724.2,4724.1,2.11680531]
[1755161698548,133.3178385,4724.2,4724.1,2.11680531]
[1755161698732,133.7778385,4724.2,4724.1,2.11680531]
[1755161699268,133.7778385,4724.2,4723.9,0.1056]
[1755161699415,1.6223,4724.1,4723.9,0.1056]
[1755161699847,1.6223,4724.0,4723.9,0.1056]
[1755161701881,132.1555385,4724.2,4724.1,5.317154]
[1755161703852,133.7778385,4724.2,4724.1,5.317154]
[1755161706862,132.1555385,4724.2,4724.1,5.317154]
[1755161707067,133.7778385,4724.2,4724.1,5.317154]
[1755161709046,134.13216522,4724.2,4724.1,5.317154]
[1755161709454,134.23776522,4724.2,4724.1,5.317154]
[1755161712993,133.8834385,4724.2,4724.1,5.317154]
[1755161713487,132.6155385,4724.2,4724.1,5.317154]
[1755161713649,132.1555385,4724.2,4724.1,5.317154]
[1755161714853,132.1555385,4724.2,4724.1,5.317954]
[1755161715156,132.1547385,4724.2,4724.1,5.317954]
[1755161715495,132.1547385,4724.2,4724.1,7.54035931]
[1755161715783,132.1547385,4724.2,4724.1,8.40080524]
[1755161718496,132.1547385,4724.2,4724.1,9.92940524]
[1755161718664,132.1547385,4724.2,4724.1,9.46390524]
[1755161718868,132.1547385,4724.2,4724.1,6.28399993]
[1755161719093,132.6147385,4724.2,4724.1,5.423554]
[1755161719299,133.7770385,4724.2,4724.1,5.423554]
[1755161719501,133.7770385,4724.2,4724.1,7.54035931]
[1755161719696,132.6147385,4724.2,4724.1,7.54035931]
[1755161720072,132.1547385,4724.2,4724.1,7.54035931]
[1755161720301,132.1547385,4724.2,4724.1,8.50618419]
[1755161720502,132.1547385,4724.2,4724.1,6.38937888]
[1755161720668,132.1547385,4724.2,4724.1,5.423554]
[1755161720872,132.1547385,4724.2,4724.1,7.54035931]
[1755161722118,132.1547385,4724.2,4724.1,5.423554]
[1755161722878,132.1547385,4724.2,4724.1,7.54035931]
[1755161723305,132.1547385,4724.2,4724.1,5.423554]
[1755161723805,132.6002385,4724.2,4724.1,5.423554]
[1755161724302,132.6002385,4724.2,4724.1,5.424554]
[1755161724978,133.8326385,4724.2,4724.1,5.424554]
[1755161726101,135.93376575,4724.2,4724.1,5.318954]
[1755161730574,132.1547385,4724.2,4724.1,5.318954]
[1755161731490,131.6547385,4724.2,4724.1,5.318954]
[1755161732509,131.6547385,4724.2,4724.1,5.424554]
[1755161733714,131.6547385,4724.2,4724.1,7.54135931]
[1755161734312,131.6547385,4724.2,4724.1,5.424554]
[1755161735208,131.6547385,4724.2,4724.1,7.54135931]
[1755161735713,131.6547385,4724.2,4724.1,5.424554]
[1755161736619,131.6547385,4724.2,4724.1,7.54135931]
[1755161737513,131.6547385,4724.2,4724.1,5.424554]
[1755161737717,132.0994385,4724.2,4724.1,5.424554]
[1755161738021,131.6539385,4724.2,4724.1,5.424554]
[1755161738317,133.3318385,4724.2,4724.1,5.424554]
[1755161741197,131.6539385,4724.2,4724.1,5.424554]
[1755161743798,133.3318385,4724.2,4724.1,5.424554]
[1755161747733,135.43296575,4724.2,4724.1,5.318954]
[1755161747904,135.53856575,4724.2,4724.1,5.318954]
[1755161750208,141.39876048,4724.2,4724.1,5.318954]
[1755161750911,141.66921369,4724.2,4724.1,5.17783276]
[1755161751535,141.39876048,4724.2,4724.1,5.17783276]
[1755161752548,137.65532625,4724.2,4724.1,5.17783276]
[1755161753848,140.65532625,4724.2,4724.1,5.17783276]
[1755161755430,140.85191362,4724.2,4724.1,5.17783276]
[1755161756734,140.85185009,4724.2,4724.1,5.17783276]
[1755161757966,142.08185009,4724.2,4724.1,5.17783276]
[1755161759059,142.53440285,4724.2,4724.1,5.17783276]
[1755161759224,143.76423626,4724.2,4724.1,5.17783276]
[1755161759554,144.31563943,4724.2,4724.1,5.17783276]
[1755161759758,144.31465086,4724.2,4724.1,5.17783276]
[1755161760759,145.54465086,4724.2,4724.1,5.17783276]
[1755161761454,145.09226469,4724.2,4724.1,5.17783276]
[1755161761956,146.32226469,4724.2,4724.1,5.17783276]
[1755161762130,146.29106469,4724.2,4724.1,5.17783276]
[1755161763559,151.26449892,4724.2,4724.1,5.17783276]
[1755161763928,151.42614771,4724.2,4724.1,5.17783276]
[1755161764424,5.11680531,4724.1,4724.0,0.001]
[1755161764626,9.08271523,4724.1,4724.0,1e-08]
[1755161764828,10.76467495,4724.1,4724.0,1e-08]
[1755161766355,11.99467495,4724.1,4724.0,1e-08]
[1755161767848,13.22467495,4724.1,4724.0,1e-08]
[1755161768367,12.77271523,4724.1,4724.0,1e-08]
[1755161769459,14.00271523,4724.1,4724.0,1e-08]
[1755161770343,14.45443243,4724.1,4724.0,1e-08]
[1755161770745,15.68443243,4724.1,4724.0,1e-08]
[1755161771066,15.23271523,4724.1,4724.0,1e-08]
[1755161771263,10.56331523,4724.1,4724.0,1e-08]
[1755161771463,12.03653256,4724.1,4724.0,1e-08]
[1755161771640,15.2326371,4724.1,4724.0,1e-08]
[1755161771959,15.03653256,4724.1,4724.0,1e-08]
[1755161772168,16.26653256,4724.1,4724.0,1e-08]
[1755161772331,16.46268396,4724.1,4724.0,1e-08]
[1755161772530,20.20611819,4724.1,4724.0,1e-08]
[1755161772964,19.00491819,4724.1,4724.0,1e-08]
[1755161773344,20.20611819,4724.1,4724.0,1e-08]
[1755161773558,21.43611819,4724.1,4724.0,1e-08]
[1755161774951,2.11698456,4723.7,4723.6,1e-08]
[1755161775152,2.41873596,4723.7,4723.6,1e-08]
[1755161775358,2.22258456,4723.7,4723.6,1e-08]
[1755161776383,3.45258456,4723.7,4723.6,1e-08]
[1755161777679,4.68258456,4723.7,4723.6,1e-08]
[1755161777851,6.9801871,4723.7,4723.6,1e-08]
[1755161778387,10.72362133,4723.7,4723.6,1e-08]
[1755161779053,11.95362133,4723.7,4723.6,1e-08]
[1755161780352,13.18362133,4723.7,4723.6,1e-08]
[1755161781759,14.41362133,4723.7,4723.6,1e-08]
[1755161782984,14.87862133,4723.7,4723.6,1e-08]
[1755161783177,16.10862133,4723.7,4723.6,1e-08]
[1755161783379,16.56216503,4723.7,4723.6,1e-08]
[1755161783582,17.76616503,4723.7,4723.6,1e-08]
[1755161784783,18.99616503,4723.7,4723.6,1e-08]
[1755161785152,21.99616503,4723.7,4723.6,1e-08]
[1755161785553,21.79968974,4723.7,4723.6,1e-08]
[1755161786280,23.02968974,4723.7,4723.6,1e-08]
[1755161787082,23.02968974,4723.7,4723.5,1e-08]
[1755161787083,23.26568974,4723.7,4723.5,1e-08]
[1755161787285,11.05115354,4723.6,4723.5,1e-08]
[1755161787684,10.78070033,4723.6,4723.5,1e-08]
[1755161788887,12.01070033,4723.6,4723.5,1e-08]
[1755161789276,10.80670033,4723.6,4723.5,1e-08]
[1755161789476,12.01070033,4723.6,4723.5,1e-08]
[1755161790490,13.24070033,4723.6,4723.5,0.00080001]
[1755161791564,15.46770033,4723.6,4723.5,0.00080001]
[1755161791764,13.24070033,4723.6,4723.5,0.00080001]
[1755161791964,14.47070033,4723.6,4723.5,0.00080001]
[1755161792865,15.57013456,4723.6,4723.5,0.00080001]
[1755161793066,15.10513456,4723.6,4723.5,0.00080001]
[1755161793300,16.33513456,4723.6,4723.5,0.00080001]
[1755161793488,16.80013456,4723.6,4723.5,0.00080001]
[1755161793690,18.00413456,4723.6,4723.5,0.00080001]
[1755161794565,19.23413456,4723.6,4723.5,0.00080001]
[1755161795081,19.52319762,4723.6,4723.5,0.00080001]
[1755161795689,19.52319762,4723.6,4723.5,250.00080001]
[1755161795869,20.75319762,4723.6,4723.5,250.00080001]
[1755161797277,21.98319762,4723.6,4723.5,250.00080001]
[1755161798471,21.69413456,4723.6,4723.5,250.00080001]
[1755161798666,22.92413456,4723.6,4723.5,250.00080001]
[1755161798868,23.21319762,4723.6,4723.5,250.00080001]
[1755161799080,23.21319762,4723.6,4723.5,222.78871782]
[1755161800482,24.15413456,4723.6,4723.5,222.78871782]
[1755161801831,25.38413456,4723.6,4723.5,222.78871782]
[1755161802032,21.64070033,4723.6,4723.5,219.04528359]
[1755161803309,22.87070033,4723.6,4723.5,219.04528359]
[1755161804134,23.06733008,4723.6,4723.5,219.04528359]
[1755161804347,21.39833008,4723.6,4723.5,219.04528359]
[1755161804510,23.0668096,4723.6,4723.5,219.04528359]
[1755161804707,24.2968096,4723.6,4723.5,219.04528359]
[1755161805848,24.29682137,4723.6,4723.5,219.04528359]
[1755161806048,25.52682137,4723.6,4723.5,219.04528359]
[1755161807321,25.55282137,4723.6,4723.5,219.04528359]
[1755161807935,36.91282137,4723.6,4723.5,214.74528359]
[1755161808743,38.14282137,4723.6,4723.5,214.74528359]
[1755161808945,37.67782137,4723.6,4723.5,214.74528359]
[1755161809122,30.61782137,4723.6,4723.5,214.74528359]
[1755161809321,28.51669412,4723.6,4723.5,214.74528359]
[1755161809511,28.51669412,4723.6,4723.5,216.43458359]
[1755161810156,29.74669412,4723.6,4723.5,214.74528359]
[1755161810448,29.74669412,4723.6,4723.5,215.98708359]
[1755161811155,29.74869412,4723.6,4723.5,214.74628359]
[1755161811517,33.07982137,4723.6,4723.5,214.74628359]
[1755161811919,33.55142137,4723.6,4723.5,214.74628359]
[1755161812429,34.77382137,4723.6,4723.5,214.74628359]
[1755161812945,36.00382137,4723.6,4723.5,214.74628359]
[1755161813113,34.78142137,4723.6,4723.5,214.74628359]
[1755161814358,36.5777004,4723.6,4723.5,214.74628359]
[1755161815145,36.38105888,4723.6,4723.5,214.74628359]
[1755161815847,37.61105888,4723.6,4723.5,214.74628359]
[1755161816460,38.83345888,4723.6,4723.5,214.74628359]
[1755161816752,38.26717985,4723.6,4723.5,214.74628359]
[1755161817124,39.49717985,4723.6,4723.5,214.74628359]
[1755161818740,39.50477985,4723.6,4723.5,214.74628359]
[1755161819148,39.70167406,4723.6,4723.5,214.74628359]
[1755161819346,39.70229854,4723.6,4723.5,214.74628359]
[1755161819845,39.23069854,4723.6,4723.5,214.74628359]
[1755161820047,41.0277583,4723.6,4723.5,214.74628359]
[1755161820254,40.83086409,4723.6,4723.5,214.74628359]
[1755161820641,40.83086409,4723.6,4723.5,214.74708359]
[1755161821469,42.06086409,4723.6,4723.5,214.74708359]
[1755161821871,49.78486409,4723.6,4723.5,214.74708359]
[1755161823055,51.01486409,4723.6,4723.5,214.74708359]
[1755161823455,51.01486409,4723.6,4723.5,214.69708359]
[1755161824473,51.67780433,4723.6,4723.5,214.69708359]
[1755161825052,54.88180433,4723.6,4723.5,214.69708359]
[1755161825753,56.67898039,4723.6,4723.5,214.69708359]
[1755161826379,53.47498039,4723.6,4723.5,214.69708359]
[1755161826571,56.67798039,4723.6,4723.5,214.69708359]
[1755161826971,56.67798039,4723.6,4723.5,215.88468359]
[1755161827270,57.90798039,4723.6,4723.5,215.88468359]
[1755161827604,57.90814885,4723.6,4723.5,214.69708359]
[1755161828705,59.13814885,4723.6,4723.5,214.69708359]
[1755161830112,60.36814885,4723.6,4723.5,214.69708359]
[1755161830275,59.91450115,4723.6,4723.5,214.69708359]
[1755161830603,59.80084092,4723.6,4723.5,214.69708359]
[1755161830905,60.36794628,4723.6,4723.5,214.69708359]
[1755161831303,57.16494628,4723.6,4723.5,214.69708359]
[1755161831503,61.59694628,4723.6,4723.5,214.69708359]
[1755161833070,63.29854628,4723.6,4723.5,214.69708359]
[1755161834506,64.52854628,4723.6,4723.5,214.69708359]
[1755161835374,64.05694628,4723.6,4723.5,214.69708359]
[1755161835579,64.52854628,4723.6,4723.5,214.69708359]
[1755161835795,64.05694628,4723.6,4723.5,214.69708359]
[1755161835999,65.28694628,4723.6,4723.5,214.69708359]
[1755161837821,66.51694628,4723.6,4723.5,214.69708359]
[1755161838500,65.94984092,4723.6,4723.5,214.69708359]
[1755161839524,67.17984092,4723.6,4723.5,214.69708359]
[1755161839696,67.65144092,4723.6,4723.5,214.69708359]
[1755161840590,69.43992565,4723.6,4723.5,214.69708359]
[1755161840986,70.66992565,4723.6,4723.5,214.69708359]
[1755161841397,70.66992565,4723.6,4723.5,205.18805194]
[1755161841632,70.10304092,4723.6,4723.5,205.18805194]
[1755161841935,72.33004092,4723.6,4723.5,205.18805194]
[1755161842118,65.20704092,4723.6,4723.5,205.18805194]
[1755161842330,68.97372947,4723.6,4723.5,205.18805194]
[1755161842625,70.20372947,4723.6,4723.5,205.18805194]
[1755161842998,68.10260222,4723.6,4723.5,205.18805194]
[1755161843197,67.53591367,4723.6,4723.5,206.95385194]
[1755161843729,67.53591367,4723.6,4723.5,205.18805194]
[1755161844029,69.33260222,4723.6,4723.5,205.18805194]
[1755161844330,68.76591367,4723.6,4723.5,205.18805194]
[1755161844738,70.86704092,4723.6,4723.5,206.95385194]
[1755161845217,69.99591367,4723.6,4723.5,206.95385194]
[1755161845705,66.79591367,4723.6,4723.5,206.95385194]
[1755161845912,69.99591367,4723.6,4723.5,206.95385194]
[1755161846738,71.22591367,4723.6,4723.5,206.95385194]
[1755161846906,68.02591367,4723.6,4723.5,206.95385194]
[1755161847101,71.22591367,4723.6,4723.5,206.95385194]
[1755161848436,72.45591367,4723.6,4723.5,206.95385194]
[1755161848631,74.55704092,4723.6,4723.5,205.18805194]
[1755161848837,71.91504092,4723.6,4723.5,205.18805194]
[1755161849318,72.11182668,4723.6,4723.5,205.18805194]
[1755161849639,72.11082668,4723.6,4723.5,206.95385194]
[1755161849836,71.23969943,4723.6,4723.5,206.95385194]
[1755161850042,71.23969943,4723.6,4723.5,205.18805194]
[1755161851665,72.46969943,4723.6,4723.5,205.18805194]
[1755161852049,72.46969279,4723.6,4723.5,205.18805194]
[1755161852247,72.27291367,4723.6,4723.5,205.18805194]
[1755161852448,74.37404092,4723.6,4723.5,205.18805194]
[1755161852758,71.37404092,4723.6,4723.5,205.18805194]
[1755161852957,75.60404092,4723.6,4723.5,205.18805194]
[1755161854463,76.83404092,4723.6,4723.5,205.18805194]
[1755161855291,74.73291367,4723.6,4723.5,205.18805194]
[1755161855488,71.53391367,4723.6,4723.5,205.18805194]
[1755161855781,74.73191367,4723.6,4723.5,205.18805194]
[1755161855979,75.96191367,4723.6,4723.5,205.18805194]
[1755161856176,72.96191367,4723.6,4723.5,205.18805194]
[1755161857272,78.06304092,4723.6,4723.5,205.18805194]
[1755161857451,79.29304092,4723.6,4723.5,205.18805194]
[1755161858640,77.19191367,4723.6,4723.5,206.95385194]
[1755161858945,78.42191367,4723.6,4723.5,206.95385194]
[1755161859340,70.10768429,4723.6,4723.5,205.18805194]
[1755161859558,72.9576,4723.6,4723.5,206.95385194]
[1755161859845,72.9576,4723.6,4723.5,209.05497919]
[1755161860238,74.1876,4723.6,4723.5,209.05497919]
[1755161860581,74.1886,4723.6,4723.5,209.05497919]
[1755161860776,66.6896,4723.6,4723.5,209.05497919]
[1755161860966,69.8886,4723.6,4723.5,209.05497919]
[1755161861477,69.783,4723.6,4723.5,209.05497919]
[1755161861774,67.814,4723.6,4723.5,211.17205339]
[1755161861954,71.015,4723.6,4723.5,211.27765339]
[1755161862340,67.814,4723.6,4723.5,211.27765339]
[1755161862541,71.015,4723.6,4723.5,214.27765339]
[1755161862873,71.0142,4723.6,4723.5,214.27765339]
[1755161863080,72.2442,4723.6,4723.5,214.17205339]
[1755161863238,68.98493262,4723.6,4723.5,212.17652614]
[1755161863445,68.98493262,4723.6,4723.5,212.81151314]
[1755161863644,63.90293262,4723.6,4723.5,212.81151314]
[1755161863875,55.16954135,4723.6,4723.5,212.81151314]
[1755161864052,51.86355083,4723.6,4723.5,212.81151314]
[1755161864258,48.75994905,4723.6,4723.5,212.81151314]
[1755161865902,49.98994905,4723.6,4723.5,212.81151314]
[1755161867056,0.88708381,4723.7,4723.6,5.11702938]
[1755161867259,3.86517715,4723.7,4723.6,6.88282938]
[1755161868454,5.09517715,4723.7,4723.6,6.88282938]
[1755161869986,6.32517715,4723.7,4723.6,6.88282938]
[1755161870691,6.32417715,4723.7,4723.6,6.88362938]
[1755161871602,7.55417715,4723.7,4723.6,6.88362938]
[1755161872480,4.35317715,4723.7,4723.6,6.88362938]
[1755161872780,9.842,4724.1,4724.0,2.11685012]
[1755161873094,9.842,4724.1,4724.0,34.93408342]
[1755161873264,13.042,4724.1,4724.0,34.93408342]
[1755161873587,13.042,4724.1,4724.0,35.56898842]
[1755161874296,14.272,4724.1,4724.0,35.56898842]
[1755161875688,15.502,4724.1,4724.0,35.56898842]
[1755161876001,1e-08,4724.1,4724.0,35.56898842]
[1755161876168,99.61856585,4724.2,4724.1,5.11680531]
[1755161876374,88.17358619,4724.2,4724.1,5.11680531]
[1755161876558,88.17358619,4724.2,4724.1,6.89350531]
[1755161876763,1e-08,4724.4,4724.2,2.1167605]
[1755161876985,3.2,4724.3,4724.1,3.0]
[1755161877169,25.83,4726.0,4724.5,2.11662609]
[1755161877574,35.1812,4724.6,4724.5,6.89332609]
[1755161877999,35.1812,4724.6,4724.5,7.05426735]
[1755161878199,35.1812,4724.6,4724.5,7.16142959]
[1755161879091,31.9812,4724.6,4724.5,7.16142959]
[1755161879293,35.1812,4724.6,4724.5,7.16142959]
[1755161881396,36.4102,4724.6,4724.5,7.79622559]
[1755161881602,36.4080966,4724.6,4724.5,7.79702559]
[1755161882517,37.6380966,4724.6,4724.5,7.79702559]
[1755161883869,38.8680966,4724.6,4724.5,7.79702559]
[1755161885499,40.0980966,4724.6,4724.5,7.79702559]
[1755161885909,40.0972966,4724.6,4724.5,6.02032559]
[1755161886200,40.5381966,4724.6,4724.5,2.75222209]
[1755161886367,41.8753966,4724.6,4724.5,2.75222209]
[1755161886569,43.1053966,4724.6,4724.5,2.75222209]
[1755161886967,41.7681966,4724.6,4724.5,2.75222209]
[1755161887171,41.3272966,4724.6,4724.5,2.75222209]
[1755161887404,41.3272966,4724.6,4724.5,4.52892209]
[1755161887701,41.3272966,4724.6,4724.5,7.52892209]
[1755161888163,42.5572966,4724.6,4724.5,7.52892209]
[1755161888367,42.5572966,4724.6,4724.5,7.09342209]
[1755161888607,42.5572966,4724.6,4724.5,5.75222209]
[1755161889699,43.7872966,4724.6,4724.5,5.75222209]
[1755161890399,43.7862966,4724.6,4724.5,5.75222209]
[1755161890603,43.7862966,4724.6,4724.5,7.52892209]
[1755161890984,45.0162966,4724.6,4724.5,7.52892209]
[1755161892525,46.2462966,4724.6,4724.5,7.52892209]
[1755161892811,43.0482966,4724.6,4724.5,7.09342209]
[1755161892982,46.2462966,4724.6,4724.5,7.52892209]
[1755161893809,47.4762966,4724.6,4724.5,7.52892209]
[1755161894305,47.4762966,4724.6,4724.5,7.09342209]
[1755161894709,47.4762966,4724.6,4724.5,7.19873774]
[1755161894914,47.4762966,4724.6,4724.5,5.85753774]
[1755161895207,48.7062966,4724.6,4724.5,5.85753774]
[1755161896404,48.7062966,4724.6,4724.5,7.63423774]
[1755161896607,49.9362966,4724.6,4724.5,7.63423774]
[1755161898012,51.1662966,4724.6,4724.5,7.19873774]
[1755161898198,51.1662966,4724.6,4724.5,5.85753774]
[1755161898914,51.6071966,4724.6,4724.5,5.85753774]
[1755161899087,51.6071966,4724.6,4724.5,5.85853774]
[1755161899411,52.3962966,4724.6,4724.5,5.85853774]
[1755161899620,54.1743966,4724.6,4724.5,5.75322209]
[1755161900493,54.1743966,4724.6,4724.5,2.75322209]
[1755161900698,55.4043966,4724.6,4724.5,5.75322209]
[1755161901994,56.6343966,4724.6,4724.5,5.75322209]
[1755161903320,57.8643966,4724.6,4724.5,5.75322209]
[1755161903988,57.8643966,4724.6,4724.5,5.11842609]
[1755161904618,59.0943966,4724.6,4724.5,5.11842609]
[1755161905494,57.3162966,4724.6,4724.5,5.11842609]
[1755161906031,58.5462966,4724.6,4724.5,5.11842609]
[1755161906245,58.5442966,4724.6,4724.5,5.11842609]
[1755161906393,59.0144966,4724.6,4724.5,3.0018]
[1755161906732,59.0144966,4724.6,4724.5,5.11842609]
[1755161906733,62.63892385,4724.6,4724.5,5.11842609]
[1755161906888,60.5377966,4724.6,4724.5,5.11842609]
[1755161907085,61.7669966,4724.6,4724.5,3.0018]
[1755161907290,56.5774966,4724.6,4724.5,5.11842609]
[1755161907524,59.7754966,4724.6,4724.5,5.11842609]
[1755161907712,60.2456966,4724.6,4724.5,5.11842609]
[1755161908090,61.7689966,4724.6,4724.5,5.11842609]
[1755161908513,60.2456966,4724.6,4724.5,5.11842609]
[1755161908834,61.0054966,4724.6,4724.5,5.11842609]
[1755161909704,61.0054966,4724.6,4724.5,5.75334609]
[1755161910233,62.2354966,4724.6,4724.5,5.75334609]
[1755161910923,62.2354966,4724.6,4724.5,7.35314609]
[1755161911133,59.0374966,4724.6,4724.5,5.75334609]
[1755161911344,62.2354966,4724.6,4724.5,5.75334609]
[1755161911548,52.55266378,4724.6,4724.5,7.81124609]
[1755161911841,0.002,4724.7,4724.6,5.11658129]
[1755161912156,0.002,4724.7,4724.6,7.17448129]
[1755161912311,3.2,4724.7,4724.6,7.17528129]
[1755161912511,3.2,4724.7,4724.6,9.07926393]
[1755161912845,3.2,4724.7,4724.6,7.17528129]
[1755161913014,0.002,4724.7,4724.6,7.17528129]
[1755161913214,3.2,4724.7,4724.6,7.17528129]
[1755161913432,0.002,4724.7,4724.6,7.17528129]
[1755161914112,1.232,4724.7,4724.6,7.17528129]
[1755161914727,1.232,4724.7,4724.6,5.11738129]
[1755161914932,1.232,4724.7,4724.6,4.01600174]
[1755161915253,1.282,4724.7,4724.6,5.11738129]
[1755161915557,2.512,4724.7,4724.6,5.11738129]
[1755161915844,2.512,4724.7,4724.6,7.17528129]
[1755161916140,2.512,4724.7,4724.6,5.11738129]
[1755161916333,2.512,4724.7,4724.6,7.17528129]
[1755161916538,2.512,4724.7,4724.6,7.28088129]
[1755161916941,3.742,4724.7,4724.6,7.28088129]
[1755161918041,3.742,4724.7,4724.6,6.82278129]
[1755161918225,4.972,4724.7,4724.6,6.82278129]
[1755161918850,4.972,4724.7,4724.6,5.22298129]
[1755161919633,6.202,4724.7,4724.6,5.22298129]
[1755161921050,7.432,4724.7,4724.6,5.22298129]
[1755161921355,7.432,4724.7,4724.6,7.45760129]
[1755161921652,7.432,4724.7,4724.6,5.85780129]
[1755161922538,8.662,4724.7,4724.6,5.85780129]
[1755161924022,9.892,4724.7,4724.6,5.85780129]
[1755161925447,11.122,4724.7,4724.6,5.85780129]
[1755161927164,12.352,4724.7,4724.6,5.85780129]
[1755161928671,13.582,4724.7,4724.6,5.85780129]
[1755161929870,13.5812,4724.7,4724.6,5.85780129]
[1755161930052,14.8112,4724.7,4724.6,5.85780129]
[1755161930252,14.8112,4724.7,4724.6,6.06940129]
[1755161931560,16.0412,4724.7,4724.6,6.06940129]
[1755161933074,17.2712,4724.7,4724.6,6.06940129]
[1755161933379,20.4662,4724.7,4724.6,8.64910129]
[1755161934482,21.6962,4724.7,4724.6,8.64910129]
[1755161934856,21.6962,4724.7,4724.6,6.06940129]
[1755161935952,22.9262,4724.7,4724.6,6.06940129]
[1755161937259,24.1562,4724.7,4724.6,7.96802174]
[1755161937567,24.1562,4724.7,4724.6,10.54772174]
[1755161937767,24.1562,4724.7,4724.6,7.96802174]
[1755161937964,0.74483583,4724.7,4724.6,10.54772174]
[1755161938279,3.197,4724.9,4724.8,5.1164917]
[1755161938452,0.002,4724.9,4724.8,4.6969917]
[1755161938784,0.002,4724.9,4724.8,7.6969917]
[1755161938984,0.002,4724.9,4724.8,8.3317037]
[1755161939194,3.197,4724.9,4724.8,8.3317037]
[1755161939378,3.197,4724.9,4724.8,7.8815037]
[1755161940095,4.427,4724.9,4724.8,7.8815037]
[1755161940690,4.427,4724.9,4724.8,8.3317037]
[1755161940866,1.232,4724.9,4724.8,8.3317037]
[1755161941472,2.462,4724.9,4724.8,8.3317037]
[1755161941999,2.462,4724.9,4724.8,5.7520037]
[1755161942158,5.657,4724.9,4724.8,5.7520037]
[1755161942794,6.887,4724.9,4724.8,5.7520037]
[1755161944088,8.117,4724.9,4724.8,5.7520037]
[1755161944482,8.117,4724.9,4724.8,7.8815037]
[1755161944995,8.117,4724.9,4724.8,5.7520037]
[1755161945221,8.5761,4724.9,4724.8,5.7520037]
[1755161945505,12.0944,4724.9,4724.8,2.7520037]
[1755161946300,9.8061,4724.9,4724.8,2.7520037]
[1755161946700,9.8061,4724.9,4724.8,5.7520037]
[1755161946900,13.3244,4724.9,4724.8,5.7520037]
[1755161947103,10.577,4724.9,4724.8,5.7520037]
[1755161947273,11.0361,4724.9,4724.8,5.7520037]
[1755161947594,13.3244,4724.9,4724.8,5.7520037]
[1755161947801,10.577,4724.9,4724.8,5.7520037]
[1755161947998,13.3244,4724.9,4724.8,5.7520037]
[1755161948204,14.5544,4724.9,4724.8,5.7520037]
[1755161949069,12.2661,4724.9,4724.8,5.7520037]
[1755161949677,13.037,4724.9,4724.8,5.7520037]
[1755161949919,15.7844,4724.9,4724.8,5.7520037]
[1755161950987,17.0144,4724.9,4724.8,5.7520037]
[1755161951186,14.7261,4724.9,4724.8,5.7520037]
[1755161951400,17.0144,4724.9,4724.8,5.7520037]
[1755161952580,18.2444,4724.9,4724.8,5.7520037]
[1755161953891,19.4744,4724.9,4724.8,5.7520037]
[1755161955813,20.7044,4724.9,4724.8,5.7520037]
[1755161957096,21.9344,4724.9,4724.8,5.7520037]
[1755161958307,19.6461,4724.9,4724.8,5.7520037]
[1755161958510,20.8761,4724.9,4724.8,5.7520037]
[1755161959014,20.417,4724.9,4724.8,5.7520037]
[1755161959891,21.647,4724.9,4724.8,5.7520037]
[1755161960518,21.6462,4724.9,4724.8,5.7520037]
[1755161961300,22.8762,4724.9,4724.8,5.7520037]
[1755161962740,24.1062,4724.9,4724.8,5.7520037]
[1755161963139,24.5689,4724.9,4724.8,5.7520037]
[1755161963438,20.9112,4724.9,4724.8,5.7520037]
[1755161963634,24.1032,4724.9,4724.8,5.7520037]
[1755161964060,25.3332,4724.9,4724.8,5.7520037]
[1755161964568,22.1412,4724.9,4724.8,5.7520037]
[1755161964743,25.3332,4724.9,4724.8,6.2255037]
[1755161964945,25.3332,4724.9,4724.8,8.3973037]
[1755161965471,26.5632,4724.9,4724.8,8.3973037]
[1755161965777,26.5632,4724.9,4724.8,10.29804025]
[1755161966771,26.5652,4724.9,4724.8,10.29804025]
[1755161966969,27.7952,4724.9,4724.8,10.29804025]
[1755161968763,29.0252,4724.9,4724.8,10.29804025]
[1755161968964,29.0252,4724.9,4724.8,7.65274025]
[1755161970035,30.2552,4724.9,4724.8,7.65274025]
[1755161970777,30.2552,4724.9,4724.8,7.86434025]
[1755161970944,30.2552,4724.9,4724.8,10.03614025]
[1755161971545,31.4852,4724.9,4724.8,10.03614025]
[1755161971744,31.4852,4724.9,4724.8,8.1354037]
[1755161971972,31.4842,4724.9,4724.8,8.1354037]
[1755161972169,28.2912,4724.9,4724.8,9.82430591]
[1755161972370,31.4842,4724.9,4724.8,9.82430591]
[1755161972670,34.1933,4724.9,4724.8,2.7520037]
[1755161972840,37.52442725,4724.9,4724.8,2.1172917]
[1755161973242,35.4233,4724.9,4724.8,2.1172917]
[1755161974175,36.6533,4724.9,4724.8,2.1172917]
[1755161974345,36.6533,4724.9,4724.8,0.0008]
[1755161975379,36.6533,4724.9,4724.6,0.1066]
[1755161975682,35.1742,4724.9,4724.8,0.0008]
[1755161975850,36.03819969,4724.9,4724.8,0.0008]
[1755161976043,38.74729969,4724.9,4724.8,0.0008]
[1755161976475,38.74729969,4724.9,4724.6,0.1066]